Workbook

Sheet Info
B5: Dimensionering van diafragma-expansievaten
E6: NBN EN 12828:2013 - Bijlage D
E8: Ontwikkeld in het kader van het Belgische project "KMO - normenantenne"
B10: Bezoek onze website : http://www.wtcb.be
B12: Het WTCB kan niet verantwoordelijk gesteld worden voor de ingevoerde
B13: gegevens, noch voor het verkeerde gebruik van de software
B14: of de verkeerde resultaten die eruit zouden voortkomen.
E21: Dimensionnement des vases d'expansion à diaphragme
E22: NBN EN 12828:2013 - Annexe D
E24: Développé dans le cadre du projet belge "PME - antenne normes"
B26: Visitez notre site web : http://www.cstc.be
B28: Le CSTC ne peut être tenu responsable des données introduites, de la
B29: mauvaise utilisation du programme ou des erreurs qui en résulteraient.
E31: Versie - Version 6.1 (2021)

Sheet Coef d'expansion (hidden)
A3: Température maximale de service | B3: Coefficient d'expansion e (en %) pour différentes concentrations de produit antigel (ethylène glycol) (en %) | H3: Volume massique eau pure | I3: Pression de vapeur saturante eau pure | J3: Débit de contraction
A4: °C | B4: 0 | C4: 10 | D4: 20 | E4: 30 | F4: 40 | G4: 50 | H4: dm³/kg | I4: bar | J4: l.h/kW
A5: 10 | B5: 0 | C5: 0 | D5: 0 | E5: 0 | F5: 0 | G5: 0 | H5: 1.0003 | I5: 0
A6: 20 | B6: 0.14 | C6: 0.29 | D6: 0.31 | E6: 0.34 | F6: 0.36 | G6: 0.38 | H6: 1.0017 | I6: 0
A7: 30 | B7: 0.4 | C7: 0.63 | D7: 0.67 | E7: 0.72 | F7: 0.77 | G7: 0.81 | H7: 1.0043 | I7: 0
A8: 40 | B8: 0.75 | C8: 1.02 | D8: 1.09 | E8: 1.16 | F8: 1.22 | G8: 1.3 | H8: 1.0078 | I8: 0
A9: 50 | B9: 1.18 | C9: 1.46 | D9: 1.55 | E9: 1.64 | F9: 1.74 | G9: 1.83 | H9: 1.0121 | I9: 0 | J9: 0.39
A10: 60 | B10: 1.68 | C10: 1.96 | D10: 2.07 | E10: 2.18 | F10: 2.3 | G10: 2.42 | H10: 1.0171 | I10: 0 | J10: 0.45
A11: 70 | B11: 2.25 | C11: 2.51 | D11: 2.64 | E11: 2.78 | F11: 2.91 | G11: 3.06 | H11: 1.0228 | I11: 0 | J11: 0.51
A12: 80 | B12: 2.89 | C12: 3.12 | D12: 3.27 | E12: 3.43 | F12: 3.59 | G12: 3.76 | H12: 1.0292 | I12: 0 | J12: 0.57
A13: 90 | B13: 3.57 | C13: 3.79 | D13: 3.96 | E13: 4.14 | F13: 4.32 | G13: 4.51 | H13: 1.0361 | I13: 0 | J13: 0.63
A14: 100 | B14: 4.34 | C14: 4.52 | D14: 4.71 | E14: 4.91 | F14: 5.11 | G14: 5.33 | H14: 1.0437 | I14: 0.01 | J14: 0.69
A15: 110 | B15: 5.15 | C15: 5.31 | D15: 5.52 | E15: 5.74 | F15: 5.97 | G15: 6.21 | H15: 1.0519 | I15: 0.43
A16: 120 | B16: 6.02 | C16: 6.17 | D16: 6.4 | E16: 6.64 | F16: 6.89 | G16: 7.16 | H16: 1.0606 | I16: 0.99
A17: 130 | B17: 6.97 | C17: 7.04 | D17: 7.28 | E17: 7.55 | F17: 7.83 | G17: 8.12 | H17: 1.07 | I17: 1.7
A19: Références: Recknagel - Genie Climatique 2007 - Tableau 1.3.1-6 Ashrae Handbook - Fundamentals (SI) 2009 - Tableau 6 page 31.7
A20: * Valeurs extrapolées
A27: Température maximale de service | B27: Coefficient d'expansion e (en %) pour différentes concentrations de produit antigel (ethylène glycol) (en %) | H27: Volume massique eau pure | I27: Pression de vapeur saturante eau pure
A28: °C | B28: 0 | C28: 10 | D28: 20 | E28: 30 | F28: 40 | G28: 50 | H28: dm³/kg | I28: bar
A29: 10 | B29: 0 | C29: 0 | D29: 0 | E29: 0 | F29: 0 | G29: 0 | H29: 1.0003 | I29: 0
A30: 15 | B30: =0.00034*A30^2+0.01099*A30-0.2014 -> 0.03995 | C30: =0.00028*A30^2+0.01915*A30-0.20713 -> 0.14312 | D30: =0.0003*A30^2+0.0216*A30-0.2336 -> 0.1579 | E30: =0.00028*A30^2+0.02383*A30-0.25217 -> 0.16828 | F30: =0.00028*A30^2+0.02603*A30-0.27336 -> 0.18009 | G30: =0.00028*A30^2+0.0285*A30-0.30098 -> 0.18952 | I30: 0
A31: 20 | B31: 0.14 | C31: 0.29 | D31: 0.31 | E31: 0.34 | F31: 0.36 | G31: 0.38 | H31: 1.0017 | I31: 0
A32: 25 | B32: =0.00034*A32^2+0.01099*A32-0.2014 -> 0.28585 | C32: =0.00028*A32^2+0.01915*A32-0.20713 -> 0.44662 | D32: =0.0003*A32^2+0.0216*A32-0.2336 -> 0.4939 | E32: =0.00028*A32^2+0.02383*A32-0.25217 -> 0.51858 | F32: =0.00028*A32^2+0.02603*A32-0.27336 -> 0.55239 | G32: =0.00028*A32^2+0.0285*A32-0.30098 -> 0.58652 | I32: 0
A33: 30 | B33: 0.4 | C33: 0.63 | D33: 0.67 | E33: 0.72 | F33: 0.77 | G33: 0.81 | H33: 1.0043 | I33: 0
A34: 35 | B34: =0.00034*A34^2+0.01099*A34-0.2014 -> 0.59975 | C34: =0.00028*A34^2+0.01915*A34-0.20713 -> 0.80612 | D34: =0.0003*A34^2+0.0216*A34-0.2336 -> 0.8899 | E34: =0.00028*A34^2+0.02383*A34-0.25217 -> 0.92488 | F34: =0.00028*A34^2+0.02603*A34-0.27336 -> 0.98069 | G34: =0.00028*A34^2+0.0285*A34-0.30098 -> 1.03952 | I34: 0
A35: 40 | B35: 0.75 | C35: 1.02 | D35: 1.09 | E35: 1.16 | F35: 1.22 | G35: 1.3 | H35: 1.0078 | I35: 0
A36: 45 | B36: =0.00034*A36^2+0.01099*A36-0.2014 -> 0.98165 | C36: =0.00028*A36^2+0.01915*A36-0.20713 -> 1.22162 | D36: =0.0003*A36^2+0.0216*A36-0.2336 -> 1.3459 | E36: =0.00028*A36^2+0.02383*A36-0.25217 -> 1.38718 | F36: =0.00028*A36^2+0.02603*A36-0.27336 -> 1.46499 | G36: =0.00028*A36^2+0.0285*A36-0.30098 -> 1.54852 | I36: 0
A37: 50 | B37: 1.18 | C37: 1.46 | D37: 1.55 | E37: 1.64 | F37: 1.74 | G37: 1.83 | H37: 1.0121 | I37: 0
A38: 55 | B38: =0.00034*A38^2+0.01099*A38-0.2014 -> 1.43155 | C38: =0.00028*A38^2+0.01915*A38-0.20713 -> 1.69312 | D38: =0.0003*A38^2+0.0216*A38-0.2336 -> 1.8619 | E38: =0.00028*A38^2+0.02383*A38-0.25217 -> 1.90548 | F38: =0.00028*A38^2+0.02603*A38-0.27336 -> 2.00529 | G38: =0.00028*A38^2+0.0285*A38-0.30098 -> 2.11352 | I38: 0
A39: 60 | B39: 1.68 | C39: 1.96 | D39: 2.07 | E39: 2.18 | F39: 2.3 | G39: 2.42 | H39: 1.0171 | I39: 0
A40: 65 | B40: =0.00034*A40^2+0.01099*A40-0.2014 -> 1.94945 | C40: =0.00028*A40^2+0.01915*A40-0.20713 -> 2.22062 | D40: =0.0003*A40^2+0.0216*A40-0.2336 -> 2.4379 | E40: =0.00028*A40^2+0.02383*A40-0.25217 -> 2.47978 | F40: =0.00028*A40^2+0.02603*A40-0.27336 -> 2.60159 | G40: =0.00028*A40^2+0.0285*A40-0.30098 -> 2.73452 | I40: 0
A41: 70 | B41: 2.25 | C41: 2.51 | D41: 2.64 | E41: 2.78 | F41: 2.91 | G41: 3.06 | H41: 1.0228 | I41: 0
A42: 75 | B42: =0.00034*A42^2+0.01099*A42-0.2014 -> 2.53535 | C42: =0.00028*A42^2+0.01915*A42-0.20713 -> 2.80412 | D42: =0.0003*A42^2+0.0216*A42-0.2336 -> 3.0739 | E42: =0.00028*A42^2+0.02383*A42-0.25217 -> 3.11008 | F42: =0.00028*A42^2+0.02603*A42-0.27336 -> 3.25389 | G42: =0.00028*A42^2+0.0285*A42-0.30098 -> 3.41152 | I42: 0
A43: 80 | B43: 2.89 | C43: 3.12 | D43: 3.27 | E43: 3.43 | F43: 3.59 | G43: 3.76 | H43: 1.0292 | I43: 0
A44: 85 | B44: =0.00034*A44^2+0.01099*A44-0.2014 -> 3.18925 | C44: =0.00028*A44^2+0.01915*A44-0.20713 -> 3.44362 | D44: =0.0003*A44^2+0.0216*A44-0.2336 -> 3.7699 | E44: =0.00028*A44^2+0.02383*A44-0.25217 -> 3.79638 | F44: =0.00028*A44^2+0.02603*A44-0.27336 -> 3.96219 | G44: =0.00028*A44^2+0.0285*A44-0.30098 -> 4.14452 | I44: 0
A45: 90 | B45: 3.57 | C45: 3.79 | D45: 3.96 | E45: 4.14 | F45: 4.32 | G45: 4.51 | H45: 1.0361 | I45: 0
A46: 95 | B46: =0.00034*A46^2+0.01099*A46-0.2014 -> 3.91115 | C46: =0.00028*A46^2+0.01915*A46-0.20713 -> 4.13912 | D46: =0.0003*A46^2+0.0216*A46-0.2336 -> 4.5259 | E46: =0.00028*A46^2+0.02383*A46-0.25217 -> 4.53868 | F46: =0.00028*A46^2+0.02603*A46-0.27336 -> 4.72649 | G46: =0.00028*A46^2+0.0285*A46-0.30098 -> 4.93352 | I46: 0
A47: 100 | B47: 4.34 | C47: 4.52 | D47: 4.71 | E47: 4.91 | F47: 5.11 | G47: 5.33 | H47: 1.0437 | I47: 0.01
A48: 105 | B48: =0.00034*A48^2+0.01099*A48-0.2014 -> 4.70105 | C48: =0.00028*A48^2+0.01915*A48-0.20713 -> 4.89062 | D48: =0.0003*A48^2+0.0216*A48-0.2336 -> 5.3419 | E48: =0.00028*A48^2+0.02383*A48-0.25217 -> 5.33698 | F48: =0.00028*A48^2+0.02603*A48-0.27336 -> 5.54679 | G48: =0.00028*A48^2+0.0285*A48-0.30098 -> 5.77852 | I48: =0.00073*A48^2-0.11045*A48+3.8055 -> 0.2565
A49: 110 | B49: 5.15 | C49: 5.31 | D49: 5.52 | E49: 5.74 | F49: 5.97 | G49: 6.21 | H49: 1.0519 | I49: 0.43
A50: 115 | B50: =0.00034*A50^2+0.01099*A50-0.2014 -> 5.55895 | C50: =0.00028*A50^2+0.01915*A50-0.20713 -> 5.69812 | D50: =0.0003*A50^2+0.0216*A50-0.2336 -> 6.2179 | E50: =0.00028*A50^2+0.02383*A50-0.25217 -> 6.19128 | F50: =0.00028*A50^2+0.02603*A50-0.27336 -> 6.42309 | G50: =0.00028*A50^2+0.0285*A50-0.30098 -> 6.67952 | I50: =0.00073*A50^2-0.11045*A50+3.8055 -> 0.758
A51: 120 | B51: 6.02 | C51: 6.17 | D51: 6.4 | E51: 6.64 | F51: 6.89 | G51: 7.16 | H51: 1.0606 | I51: 0.99
A52: 125 | B52: =0.00034*A52^2+0.01099*A52-0.2014 -> 6.48485 | C52: =0.00028*A52^2+0.01915*A52-0.20713 -> 6.56162 | D52: =0.0003*A52^2+0.0216*A52-0.2336 -> 7.1539 | E52: =0.00028*A52^2+0.02383*A52-0.25217 -> 7.10158 | F52: =0.00028*A52^2+0.02603*A52-0.27336 -> 7.35539 | G52: =0.00028*A52^2+0.0285*A52-0.30098 -> 7.63652 | I52: =0.00073*A52^2-0.11045*A52+3.8055 -> 1.4055
A53: 130 | B53: 6.97 | C53: 7.04 | D53: 7.28 | E53: 7.55 | F53: 7.83 | G53: 8.12 | H53: 1.07 | I53: 1.7

Sheet Calcul - Berekening
D2: Nederlands | H2: =Langage!A10 -> Nieuwe berekening
B4: =Langage!A5 -> Rekenblad gesloten expansievat met variabele druk - NBN EN 12828:2013
B6: =Langage!A6 -> Referentie
B8: =Langage!A41 -> Dossier | H8: =Langage!A46 -> Datum
B9: =Langage!A42 -> Naam
B10: =Langage!A43 -> Adres
B11: =Langage!A44 -> Gemeente
B12: =Langage!A45 -> Commentaar
B14: =Langage!A7 -> Invoergegevens voor de installatie | M14: Valeurs de calcul
B16: =Langage!A11 -> 1 Maximale bedrijfstemperatuur | H16: qmax | J16: °C | M16: =IF(I16="","",I16) ->  | X16: 10 | Y16: 2.5 | AA16: =IF(X16="","",VLOOKUP(X16, 'Coef d''expansion'!A$29:G$53, MATCH(M$17, 'Coef d''expansion'!A$28:G$28, 0), FALSE)) ->  | AB16: =IF(OR(M$36="",M$39="",I$43="",M$20="",AA16=""),"",(M$36+1)*M$39/(M$39-I$43-M$20*(AA16/100))-1) ->  | AC16: =IF(OR(AB16="",X16>I$16),"",AB16) ->  | AE16: Range
B17: =Langage!A12 -> 2 Antivriesproduct concentratie (ethyleenglycol) | J17: % | M17: =IF(I17="","",I17) ->  | X17: 15 | Y17: 3 | AA17: =IF(X17="","",VLOOKUP(X17, 'Coef d''expansion'!A$29:G$53, MATCH(M$17, 'Coef d''expansion'!A$28:G$28, 0), FALSE)) ->  | AC17: =IF(OR(AB17="",X17>I$16),"",AB17) ->  | AE17: =$X$16:INDEX($X$16:$X$40;COUNT($AC$16:$AC$40))
B18: =Langage!A13 -> 3 Expansiecoëfficiënt (vulling op 10°C) | H18: e | I18: =IF(OR(M16="",M17=""),"",VLOOKUP(M16, 'Coef d''expansion'!A29:G53, MATCH(M17, 'Coef d''expansion'!A28:G28, 0), FALSE)) ->  | J18: % | X18: 20 | Y18: 3.5 | AA18: =IF(X18="","",VLOOKUP(X18, 'Coef d''expansion'!A$29:G$53, MATCH(M$17, 'Coef d''expansion'!A$28:G$28, 0), FALSE)) ->  | AE18: =$AC$16:INDEX($AC$16:$AC$40;COUNT($AC$16:$AC$40))
B19: =Langage!A14 -> 4 Relatieve dampdruk | H19: pv | I19: =IF(M16="","",VLOOKUP(M16, 'Coef d''expansion'!A29:I53, 9, FALSE)) ->  | J19: bar | X19: 25 | Y19: 4 | AA19: =IF(X19="","",VLOOKUP(X19, 'Coef d''expansion'!A$29:G$53, MATCH(M$17, 'Coef d''expansion'!A$28:G$28, 0), FALSE)) -> 
B20: =Langage!A15 -> 5 Waterinhoud van de installatie | H20: Vsystem | J20: l | M20: =IF(I20="","",ROUND(I20,0)) ->  | X20: 30 | Y20: 4.5 | AA20: =IF(X20="","",VLOOKUP(X20, 'Coef d''expansion'!A$29:G$53, MATCH(M$17, 'Coef d''expansion'!A$28:G$28, 0), FALSE)) -> 
B21: =Langage!A16 -> 6 Statische hoogte | H21: hst | J21: m | M21: =IF(I21="","",ROUND(I21,1)) ->  | X21: 35 | Y21: 5 | AA21: =IF(X21="","",VLOOKUP(X21, 'Coef d''expansion'!A$29:G$53, MATCH(M$17, 'Coef d''expansion'!A$28:G$28, 0), FALSE)) -> 
B22: =Langage!A17 -> 7 Hoogteverschil tussen expansievat en veiligheidsventiel | H22: hXY | J22: m | M22: =IF(I22="","",ROUND(I22,1)) ->  | X22: 40 | Y22: 6 | AA22: =IF(X22="","",VLOOKUP(X22, 'Coef d''expansion'!A$29:G$53, MATCH(M$17, 'Coef d''expansion'!A$28:G$28, 0), FALSE)) -> 
B23: =Langage!A18 -> 8 Pompdruk | H23: Dpp | J23: bar | X23: 45 | Y23: 7 | AA23: =IF(X23="","",VLOOKUP(X23, 'Coef d''expansion'!A$29:G$53, MATCH(M$17, 'Coef d''expansion'!A$28:G$28, 0), FALSE)) -> 
B24: =Langage!A19 -> 9 Insteldruk van het veiligheidsventiel | H24: psv | J24: bar | X24: 50 | Y24: 8 | AA24: =IF(X24="","",VLOOKUP(X24, 'Coef d''expansion'!A$29:G$53, MATCH(M$17, 'Coef d''expansion'!A$28:G$28, 0), FALSE)) -> 
X25: 55 | AA25: =IF(X25="","",VLOOKUP(X25, 'Coef d''expansion'!A$29:G$53, MATCH(M$17, 'Coef d''expansion'!A$28:G$28, 0), FALSE)) -> 
B26: =Langage!A8 -> Tussenberekening | M26: =IF(OR(M24="",M22=""),"",ROUND(M24+(M22*0.0981),1)) ->  | O26: Pression au vase correspondant à la pression d'ouverture de la soupape | X26: 60 | AA26: =IF(X26="","",VLOOKUP(X26, 'Coef d''expansion'!A$29:G$53, MATCH(M$17, 'Coef d''expansion'!A$28:G$28, 0), FALSE)) -> 
X27: 65 | AA27: =IF(X27="","",VLOOKUP(X27, 'Coef d''expansion'!A$29:G$53, MATCH(M$17, 'Coef d''expansion'!A$28:G$28, 0), FALSE)) -> 
B28: =Langage!A20 -> 10 Expansievolume van het water | H28: Vex | I28: =IF(OR(I18="",M20=""),"",I18*M20/100) ->  | J28: l | X28: 70 | AA28: =IF(X28="","",VLOOKUP(X28, 'Coef d''expansion'!A$29:G$53, MATCH(M$17, 'Coef d''expansion'!A$28:G$28, 0), FALSE)) -> 
B29: =Langage!A21 -> 11 Minimaal reservewatervolume | H29: Vwr,min | I29: =IF(I28="","",IF(AND(I39<>"",I39<15), I39*0.2, MAX(M20*0.005,3))) ->  | J29: l | X29: 75 | AA29: =IF(X29="","",VLOOKUP(X29, 'Coef d''expansion'!A$29:G$53, MATCH(M$17, 'Coef d''expansion'!A$28:G$28, 0), FALSE)) -> 
B30: =Langage!A22 -> 12 Maximaal toelaatbare druk | H30: pfin,max | I30: =IF(OR(M22="",M23="",M24=""),"",M24+(M22*0.0981)-M23-MAX(0.5,0.1*M24)) ->  | J30: bar | X30: 80 | AA30: =IF(X30="","",VLOOKUP(X30, 'Coef d''expansion'!A$29:G$53, MATCH(M$17, 'Coef d''expansion'!A$28:G$28, 0), FALSE)) -> 
B31: =Langage!A23 -> 13 Statische druk | H31: pst | I31: =IF(M21="","",M21*0.0981) ->  | J31: bar | M31: =IF(I31="","",ROUND(I31,1)) ->  | X31: 85 | AA31: =IF(X31="","",VLOOKUP(X31, 'Coef d''expansion'!A$29:G$53, MATCH(M$17, 'Coef d''expansion'!A$28:G$28, 0), FALSE)) -> 
X32: 90 | AA32: =IF(X32="","",VLOOKUP(X32, 'Coef d''expansion'!A$29:G$53, MATCH(M$17, 'Coef d''expansion'!A$28:G$28, 0), FALSE)) -> 
B33: =Langage!A9 -> Keuze van het expansievat | X33: 95 | AA33: =IF(X33="","",VLOOKUP(X33, 'Coef d''expansion'!A$29:G$53, MATCH(M$17, 'Coef d''expansion'!A$28:G$28, 0), FALSE)) -> 
X34: 100 | AA34: =IF(X34="","",VLOOKUP(X34, 'Coef d''expansion'!A$29:G$53, MATCH(M$17, 'Coef d''expansion'!A$28:G$28, 0), FALSE)) -> 
B35: =Langage!A24 -> 14 Minimale voordruk | H35: p0,min | I35: =IF(OR(I31="",I19=""),"",ROUNDUP(P35,1)) ->  | J35: bar | O35: Pression de gonflage minimale | P35: =IF(OR(I31="",I19=""),"",MAX(I31+0.2,I31+I19)) ->  | X35: 105 | AA35: =IF(X35="","",VLOOKUP(X35, 'Coef d''expansion'!A$29:G$53, MATCH(M$17, 'Coef d''expansion'!A$28:G$28, 0), FALSE)) -> 
B36: =Langage!A25 -> 15 Voordruk | E36: p0 ≥ p0,min | H36: p0 | J36: bar | M36: =IF(I36="","",ROUND(I36,1)) ->  | R36: Pression initiale minimale imposée | S36: =IF(OR(I31=""),"",I31+0.5) ->  | T36: =IF(OR(I31="",M37=""),"",(I31+1)/(1-M37)-1) ->  | X36: 110 | AA36: =IF(X36="","",VLOOKUP(X36, 'Coef d''expansion'!A$29:G$53, MATCH(M$17, 'Coef d''expansion'!A$28:G$28, 0), FALSE)) -> 
B37: =Langage!A52 -> 16 Toelaatbaar luchtverlies | H37: Cla | J37: % | M37: =IF(I37="","",ROUND(I37,0)/100) -> 
B38: =Langage!A53 -> 17 Minimaal volume van het vat | H38: VN,min | I38: =IF(OR(P38="",S38=""),"",ROUNDUP(MAX(P38,S38),0)) ->  | J38: l | O38: Volume minimal du vase | P38: =IF(OR(I28="",I29="",I30="",M36=""),"",((I30+1)/(I30-M36))*(I28+I29)) ->  | R38: Volume minimal du vase | S38: =IF(OR(I28="",I30="",M36=""),"",(I30+1)/(M36+1)*(S40+1)/(I30-S40)*I28) ->  | X38: 115 | AA38: =IF(X38="","",VLOOKUP(X38, 'Coef d''expansion'!A$29:G$53, MATCH(M$17, 'Coef d''expansion'!A$28:G$28, 0), FALSE)) ->  | AB38: =IF(OR(M$36="",M$39="",I$43="",M$20="",AA38=""),"",(M$36+1)*M$39/(M$39-I$43-M$20*(AA38/100))-1) -> 
B39: =Langage!A54 -> 18 Werkelijk volume van het vat | E39: VN ³ VN,min | H39: VN | J39: l | M39: =IF(I39="","",ROUND(I39,0)) ->  | X39: 120 | AA39: =IF(X39="","",VLOOKUP(X39, 'Coef d''expansion'!A$29:G$53, MATCH(M$17, 'Coef d''expansion'!A$28:G$28, 0), FALSE)) ->  | AB39: =IF(OR(M$36="",M$39="",I$43="",M$20="",AA39=""),"",(M$36+1)*M$39/(M$39-I$43-M$20*(AA39/100))-1) -> 
B40: =Langage!A55 -> 19 Minimale begindruk | H40: pini,min | I40: =IF(OR(P40="",S40=""),"",ROUND(MAX(P40,S40),1)) ->  | J40: bar | O40: Pression initiale minimale | P40: =IF(OR(I29="",M36="",M39=""),"",(M39*(M36+1)/(M39-I29))-1) ->  | R40: Pression initiale minimale imposée | S40: =MAX(S36,T36) -> 0 | X40: 125 | AA40: =IF(X40="","",VLOOKUP(X40, 'Coef d''expansion'!A$29:G$53, MATCH(M$17, 'Coef d''expansion'!A$28:G$28, 0), FALSE)) ->  | AB40: =IF(OR(M$36="",M$39="",I$43="",M$20="",AA40=""),"",(M$36+1)*M$39/(M$39-I$43-M$20*(AA40/100))-1) -> 
B41: =Langage!A56 -> 20 Maximale begindruk | H41: pini,max | I41: =IF(OR(P41=""),"",ROUND(P41,1)) ->  | J41: bar | O41: Pression initiale maximale | P41: =IF(OR(I28="",I30="",M36="",M39=""),"",((I30+1)/(1+I28/M39*(I30+1)/(M36+1))-1)) ->  | X41: 130 | AA41: =IF(X41="","",VLOOKUP(X41, 'Coef d''expansion'!A$29:G$53, MATCH(M$17, 'Coef d''expansion'!A$28:G$28, 0), FALSE)) ->  | AB41: =IF(OR(M$36="",M$39="",I$43="",M$20="",AA41=""),"",(M$36+1)*M$39/(M$39-I$43-M$20*(AA41/100))-1) -> 
B42: =Langage!A57 -> 21 Begindruk | E42: pini,min ≤ pini ≤ pini,max | H42: pini | J42: bar | M42: =IF(I42="","",ROUND(I42,1)) -> 
B43: =Langage!A58 -> 22 Reëel reservewatervolume | H43: Vwr | I43: =IF(OR(M36="",M39="",M42=""),"",IF(M42<M36,0,M39*(M42-M36)/(M42+1))) ->  | J43: l
B44: =Langage!A59 -> 23 Einddruk | H44: pfin | I44: =IF(OR(I28="",M36="",M39="",I43=""),"",((M36+1)*M39/(M39-I28-I43))-1) ->  | J44: bar
B45: =Langage!A60 -> 24 Gebruiksrendement | H45: h | I45: =IF(OR(I28="",M39="",I43=""),"",(I28+I43)/M39) ->  | J45: -
B47: =Langage!A34 -> Vuldruk | O47: =CONCATENATE(B47," (bar)") -> Vuldruk (bar)
B49: =Langage!A35 -> 25 Temperatuur | H49: qfil | J49: °C | M49: =IF(I49="","",ROUND(I49,0)) ->  | O49: Coefficient d'expansion (remplissage à 10°C) | P49: =IF(M49="","",VLOOKUP(M49, 'Coef d''expansion'!A29:G53, MATCH(M17, 'Coef d''expansion'!A28:G28, 0), FALSE)) -> 
B50: =Langage!A36 -> 26 Vuldruk | H50: pfil | I50: =IF(OR(M36="",M39="",I43="",M20="",P49=""),"",(M36+1)*M39/(M39-I43-M20*(P49/100))-1) ->  | J50: bar | O50: =CONCATENATE(Langage!A66," (°C)") -> Temperatuur (°C)
B52: =Langage!A37 -> Voordrukverlies
B54: =Langage!A64 -> 27 Temperatuur | H54: qfil | J54: °C | M54: =IF(I54="","",ROUND(I54,0)) ->  | O54: Coefficient d'expansion (remplissage à 10°C) | P54: =IF(M54="","",VLOOKUP(M54, 'Coef d''expansion'!A29:G53, MATCH(M17, 'Coef d''expansion'!A28:G28, 0), FALSE)) -> 
B55: =Langage!A38 -> 28 Hoeveelheid verloren lucht | H55: Cla | J55: % | M55: =IF(I55="","",ROUND(I55,0)) ->  | R55: Pression initiale minimale | S55: =(I31+1)/(1-M55/100)-1 -> 
B56: =Langage!A39 -> 29 Overblijvende voordruk | H56: prem | I56: =IF(OR(M36="",M55=""),"",(100-M55)/100*(M36+1)-1) ->  | J56: bar
B57: =Langage!A65 -> 30 Druk in het vat | H57: pfil | I57: =IF(OR(I56="",M39="",I43="",M20="",P54="",I31=""),"",IF(((I56+1)*M39/(M39-I43-M20*P54/100)-1)<I31,"< pst",(I56+1)*M39/(M39-I43-M20*P54/100)-1)) ->  | J57: bar
O87: Performance label | P87: Value | R87: Labels | S87: Values | U87: Labels | V87: Values | X87: Légend
G90: =Langage!A$48 -> Volume van het vat | I90: =IF(M$39="","",M$39) ->  | J90: l | O90: danger (pression statique) | P90: =M$31 ->  | R90: 0.5 | S90: =R90 -> 0.5 | U90: Pointer | V90: =I$50 ->  | X90: =CONCATENATE("Min ",M$42," - bar - Max ",M$44) -> Min - bar - Max
G91: =Langage!A$49 -> Voordruk | I91: =IF(M$36="","",M$36) ->  | J91: bar | O91: trop bas | P91: =IF(M$31>=R97,0,IF(M$42>R97,R97-M$31,M$42-M$31)) -> 0 | R91: 1 | S91: =R91-R90 -> 0.5 | U91: Thickness | V91: 0.05
G92: =Langage!A$50 -> Begindruk bij 10°C | I92: =IF(M$42="","",M$42) ->  | J92: bar | O92: normal | P92: =IF(M$42>=R97,0,IF(M$44>R97,R97-M$42,M$44-M$42)) -> 0 | R92: 1.5 | S92: =R92-R91 -> 0.5 | U92: Rest | V92: =(P94+S98)-V90-V91 -> 
G93: =CONCATENATE(Langage!A$51,M$16,"°C") -> Einddruk bij °C | I93: =IF(M$44="","",M$44) ->  | J93: bar | O93: trop haut | P93: =IF(M$44>=R97,0,IF(M$26>R97,R97-M$44,M$26-M$44)) -> 0 | R93: 2 | S93: 0.5
O94: danger (soupape de sécurité) | P94: =IF(M$26>=R97,0,R97-M$26) -> 0 | R94: 2.5 | S94: 0.5
O95: Total | P95: =SUM(P90:P94) -> 0 | R95: 3 | S95: 0.5
R96: 3.5 | S96: 0.5
H97: =Langage!A$61 -> Normale werking | R97: 4 | S97: 0.5
H98: =Langage!A$62 -> Controle aanbevolen | R98: Total | S98: =SUM(S90:S97) -> 4
H99: =Langage!A$63 -> Interventie noodzakelijk
O102: Performance label | P102: Value | R102: Labels | S102: Values | U102: Labels | V102: Values | X102: Légend
G103: =Langage!A$48 -> Volume van het vat | I103: =IF(M$39="","",M$39) ->  | J103: l
G104: =Langage!A$49 -> Voordruk | I104: =IF(M$36="","",M$36) ->  | J104: bar
G105: =Langage!A$50 -> Begindruk bij 10°C | I105: =IF(M$42="","",M$42) ->  | J105: bar | O105: gonflage | P105: =M$31 ->  | R105: 1 | S105: =R105 -> 1 | U105: Pointer | V105: =I$50 ->  | X105: =CONCATENATE("Min ",M$42," - bar - Max ",M$44) -> Min - bar - Max
G106: =CONCATENATE(Langage!A$51,M$16,"°C") -> Einddruk bij °C | I106: =IF(M$44="","",M$44) ->  | J106: bar | O106: trop bas | P106: =IF(M$31>=R114,0,IF(M$42>R114,R114-M$31,M$42-M$31)) -> 0 | R106: 2 | S106: =R106-R105 -> 1 | U106: Thickness | V106: 0.05
O107: normal | P107: =IF(M$42>=R114,0,IF(M$44>R114,R114-M$42,M$44-M$42)) -> 0 | R107: 3 | S107: =R107-R106 -> 1 | U107: Rest | V107: =(P109+S115)-V105-V106 -> 
O108: trop haut | P108: =IF(M$44>=R114,0,IF(M$26>R114,R114-M$44,M$26-M$44)) -> 0 | R108: 4 | S108: 1
H109: =Langage!A$61 -> Normale werking | O109: danger | P109: =IF(M$26>=R114,0,R114-M$26) -> 0 | R109: 5 | S109: 1
H110: =Langage!A$62 -> Controle aanbevolen | O110: Total | P110: =SUM(P105:P109) -> 0 | R110: 6 | S110: 1
H111: =Langage!A$63 -> Interventie noodzakelijk | R111: 7 | S111: 1
R112: 8 | S112: 1
R113: 9 | S113: 1
R114: 10 | S114: 1
R115: Total | S115: =SUM(S105:S114) -> 10

Sheet Directives

Sheet Richtlijnen

Sheet Langage (hidden)
A1: Choix
B2: 1 | C2: 2
A3: ='Calcul - Berekening'!D2 -> Nederlands | B3: Français | C3: Nederlands
A5: =IF(A$3=B$3,B5,C5) -> Rekenblad gesloten expansievat met variabele druk - NBN EN 12828:2013 | B5: Tableau de calcul du vase d'expansion fermé à pression variable - NBN EN 12828:2013 | C5: Rekenblad gesloten expansievat met variabele druk - NBN EN 12828:2013
A6: =IF(A$3=B$3,B6,C6) -> Referentie | B6: Références | C6: Referentie
A7: Invoergegevens voor de installatie | B7: Données relatives à l'installation | C7: Invoergegevens voor de installatie
A8: Tussenberekening | B8: Calculs intermédiaires | C8: Tussenberekening
A9: Keuze van het expansievat | B9: Choix du vase d'expansion | C9: Keuze van het expansievat
A10: Nieuwe berekening | B10: Nouveau calcul | C10: Nieuwe berekening
A11: 1 Maximale bedrijfstemperatuur | B11: 1 Température maximale de service | C11: 1 Maximale bedrijfstemperatuur
A12: 2 Antivriesproduct concentratie (ethyleenglycol) | B12: 2 Concentration en antigel (éthylène glycol) | C12: 2 Antivriesproduct concentratie (ethyleenglycol)
A13: 3 Expansiecoëfficiënt (vulling op 10°C) | B13: 3 Coefficient d'expansion (remplissage à 10°C) | C13: 3 Expansiecoëfficiënt (vulling op 10°C)
A14: 4 Relatieve dampdruk | B14: 4 Pression de vapeur saturante | C14: 4 Relatieve dampdruk
A15: 5 Waterinhoud van de installatie | B15: 5 Contenance en eau de l'installation | C15: 5 Waterinhoud van de installatie
A16: 6 Statische hoogte | B16: 6 Hauteur statique | C16: 6 Statische hoogte
A17: 7 Hoogteverschil tussen expansievat en veiligheidsventiel | B17: 7 Différence de hauteur entre le vase et la soupape de sécurité | C17: 7 Hoogteverschil tussen expansievat en veiligheidsventiel
A18: 8 Pompdruk | B18: 8 Pression pompe | C18: 8 Pompdruk
A19: 9 Insteldruk van het veiligheidsventiel | B19: 9 Pression de tarage de la soupape de sécurité | C19: 9 Insteldruk van het veiligheidsventiel
A20: 10 Expansievolume van het water | B20: 10 Volume d'expansion de l'eau | C20: 10 Expansievolume van het water
A21: 11 Minimaal reservewatervolume | B21: 11 Volume de réserve d'eau minimal | C21: 11 Minimaal reservewatervolume
A22: 12 Maximaal toelaatbare druk | B22: 12 Pression maximale admissible | C22: 12 Maximaal toelaatbare druk
A23: 13 Statische druk | B23: 13 Pression statique | C23: 13 Statische druk
A24: 14 Minimale voordruk | B24: 14 Pression de gonflage minimale | C24: 14 Minimale voordruk
A25: 15 Voordruk | B25: 15 Pression de gonflage | C25: 15 Voordruk
A26: 16 Minimaal volume van het vat | B26: 16 Volume minimal du vase | C26: 16 Minimaal volume van het vat
A27: 17 Werkelijk volume van het vat | B27: 17 Volume nominal du vase | C27: 17 Werkelijk volume van het vat
A28: 18 Minimale begindruk | B28: 18 Pression initiale minimale | C28: 18 Minimale begindruk
A29: 19 Maximale begindruk | B29: 19 Pression initiale maximale | C29: 19 Maximale begindruk
A30: 20 Begindruk | B30: 20 Pression initiale | C30: 20 Begindruk
A31: 21 Reëel reservewatervolume | B31: 21 Volume de réserve d'eau réel | C31: 21 Reëel reservewatervolume
A32: 22 Einddruk | B32: 22 Pression finale | C32: 22 Einddruk
A33: 23 Gebruiksrendement | B33: 23 Rendement d'utilisation | C33: 23 Gebruiksrendement
A34: Vuldruk | B34: Pression de remplissage | C34: Vuldruk
A35: 25 Temperatuur | B35: 25 Température | C35: 25 Temperatuur
A36: 26 Vuldruk | B36: 26 Pression de remplissage | C36: 26 Vuldruk
A37: Voordrukverlies | B37: Perte de pression de gonflage | C37: Voordrukverlies
A38: 28 Hoeveelheid verloren lucht | B38: 28 Quantité d'air perdue | C38: 28 Hoeveelheid verloren lucht
A39: 29 Overblijvende voordruk | B39: 29 Pression de gonflage subsistante | C39: 29 Overblijvende voordruk
A40: 0
A41: Dossier | B41: Dossier | C41: Dossier
A42: Naam | B42: Nom | C42: Naam
A43: Adres | B43: Adresse | C43: Adres
A44: Gemeente | B44: Commune | C44: Gemeente
A45: Commentaar | B45: Commentaire | C45: Commentaar
A46: Datum | B46: Date | C46: Datum
A47: 0
A48: Volume van het vat | B48: Volume du vase | C48: Volume van het vat
A49: Voordruk | B49: Pression de gonflage | C49: Voordruk
A50: Begindruk bij 10°C | B50: Pression initiale à 10°C | C50: Begindruk bij 10°C
A51: Einddruk bij | B51: Pression finale à | C51: Einddruk bij
A52: 16 Toelaatbaar luchtverlies | B52: 16 Perte d'air admissible | C52: 16 Toelaatbaar luchtverlies
A53: 17 Minimaal volume van het vat | B53: 17 Volume minimal du vase | C53: 17 Minimaal volume van het vat
A54: 18 Werkelijk volume van het vat | B54: 18 Volume nominal du vase | C54: 18 Werkelijk volume van het vat
A55: 19 Minimale begindruk | B55: 19 Pression initiale minimale | C55: 19 Minimale begindruk
A56: 20 Maximale begindruk | B56: 20 Pression initiale maximale | C56: 20 Maximale begindruk
A57: 21 Begindruk | B57: 21 Pression initiale | C57: 21 Begindruk
A58: 22 Reëel reservewatervolume | B58: 22 Volume de réserve d'eau réel | C58: 22 Reëel reservewatervolume
A59: 23 Einddruk | B59: 23 Pression finale | C59: 23 Einddruk
A60: 24 Gebruiksrendement | B60: 24 Rendement d'utilisation | C60: 24 Gebruiksrendement
A61: Normale werking | B61: Fonctionnement normal | C61: Normale werking
A62: Controle aanbevolen | B62: Contrôle recommandé | C62: Controle aanbevolen
A63: Interventie noodzakelijk | B63: Intervention nécessaire | C63: Interventie noodzakelijk
A64: =IF(A$3=B$3,B64,C64) -> 27 Temperatuur | B64: 27 Température | C64: 27 Temperatuur
A65: 30 Druk in het vat | B65: 30 Pression dans le vase | C65: 30 Druk in het vat
A66: Temperatuur | B66: Température | C66: Temperatuur
